[Event "Fagernes GM Swiss 2020"]
[Site "Fagernes"]
[Date "2020.10.07"]
[Round "5.20"]
[White "Brodtkorb, Lars Johan"]
[Black "Bentsen, Hakon"]
[Result "1-0"]
[ECO "C00"]
[WhiteElo "2166"]
[BlackElo "2120"]
[Annotator "ChessBase"]
[PlyCount "63"]
[EventDate "2020.10.04"]
[EventType "swiss"]
[EventCountry "NOR"]
[SourceTitle "playchess.com"]
[Source "ChessBase"]
[SourceQuality "1"]
[TimeControl "40/6000+30:2400+30"]

1. Nf3 {[%emt 0:14:14]} Nf6 {[%emt 0:00:00]} 2. g3 {[%emt 0:00:11]} d5 {[%emt 0:00:00]} 3. Bg2 {[%emt 0:00:12]} e6 {[%emt 0:00:11]} 4. O-O {[%emt 0:00:13]} Be7 {[%emt 0:00:18]} 5. d3 {[%emt 0:00:45]} O-O {[%emt 0:00:51]} 6. Nbd2 {[%emt 0:00:18]} b6 {[%emt 0:00:20]} 7. e4 {[%emt 0:00:23]} Bb7 {[%emt 0:02:15]} 8. e5 {[%emt 0:00:41]} Nfd7 {[%emt 0:00:09]} 9. Re1 {[%emt 0:00:12]} c5 {[%emt 0:00:36]} 10. h4 {[%emt 0:00:36]} Nc6 {[%emt 0:14:20]} 11. Nf1 {[%emt 0:00:50]} Qc7 {[%emt 0:02:19]} 12. Bf4 {[%emt 0:00:29]} Rfd8 {[%emt 0:00:36]} 13. Ne3 {[%emt 0:01:19]} Nf8 {[%emt 0:00:18]} 14. Ng4 {[%emt 0:01:19]} Ng6 {[%emt 0:07:03]} 15. Bd2 {[%emt 0:01:17]} Bf8 {[%emt 0:05:16]} 16. h5 {[%emt 0:05:11]} Nge7 {[%emt 0:00:09]} 17. h6 {[%emt 0:02:20]} g6 {[%emt 0:31:41]} 18. Bg5 {[%emt 0:25:56]} Rdc8 {[%emt 0:13:24]} 19. c3 {[%emt 0:35:13]} Nf5 {[%emt 0:12:45]} 20. Qd2 {[%emt 0:00:24]} Be7 {[%emt 0:02:48]} 21. Bxe7 {[%emt 0:03:09]} Qxe7 {[%emt 0:00:24]} 22. Nf6+ {[%emt 0:00:30]} Kh8 {[%emt 0:00:09]} 23. g4 {[%emt 0:10:55]} Nd6 {[%emt 0:00:42]} 24. Nxh7 {[%emt 0:03:43]} Nxe5 {[%emt 0:00:24]} 25. Rxe5 {[%emt 0:00:24]} Kxh7 {[%emt 0:00:06]} 26. Ng5+ {[%emt 0:00:16]} Kh8 {[%emt 0:03:22]} 27. Rae1 {[%emt 0:00:36]} d4 {[%emt 0:03:44]} 28. Qf4 {[%emt 0:00:33]} Bxg2 {[%emt 0:00:51]} 29. Rxe6 {[%emt 0:00:05]} fxe6 {[%emt 0:02:10]} 30. Rxe6 {[%emt 0:01:51]} Qxe6 {[%emt 0:05:47]} 31. Nxe6 {[%emt 0:00:01]} Kh7 {[%emt 0:01:01]} 32. Qxd6 {[%emt 0:00:51]} 1-0

[Event "Fagernes GM Swiss 2020"]
[Site "Fagernes"]
[Date "2020.10.07"]
[Round "5.22"]
[White "Grover, Sigurd Loe"]
[Black "Machlik, Monika"]
[Result "1/2-1/2"]
[ECO "E11"]
[WhiteElo "2145"]
[BlackElo "2082"]
[Annotator "ChessBase"]
[PlyCount "64"]
[EventDate "2020.10.04"]
[EventType "swiss"]
[EventCountry "NOR"]
[SourceTitle "playchess.com"]
[Source "ChessBase"]
[SourceQuality "1"]
[TimeControl "40/6000+30:2400+30"]

1. d4 {[%emt 0:00:00]} Nf6 {[%emt 0:00:00]} 2. Nf3 {[%emt 0:01:36]} e6 {[%emt 0:00:00]} 3. c4 {[%emt 0:00:05]} Bb4+ {[%emt 0:00:05]} 4. Bd2 {[%emt 0:00:05]} a5 {[%emt 0:00:16]} 5. a3 {[%emt 0:00:06]} Bxd2+ {[%emt 0:00:13]} 6. Qxd2 {[%emt 0:00:11]} d6 {[%emt 0:02:54]} 7. Nc3 {[%emt 0:00:13]} Nc6 {[%emt 0:04:22]} 8. Rd1 {[%emt 0:00:46]} O-O {[%emt 0:06:51]} 9. e4 {[%emt 0:00:11]} Qe7 {[%emt 0:04:14]} 10. Be2 {[%emt 0:00:15]} e5 {[%emt 0:02:58]} 11. dxe5 {[%emt 0:00:09]} Nxe5 {[%emt 0:10:47]} 12. Nd4 {[%emt 0:00:12]} c6 {[%emt 0:22:05]} 13. O-O {[%emt 0:06:49]} Qc7 {[%emt 0:04:53]} 14. h3 {[%emt 0:22:49]} Ng6 {[%emt 0:03:37]} 15. Rfe1 {[%emt 0:02:40]} Re8 {[%emt 0:02:44]} 16. Bf1 {[%emt 0:00:56]} Ne5 {[%emt 0:07:07]} 17. f4 {[%emt 0:05:09]} Ng6 {[%emt 0:00:09]} 18. g3 {[%emt 0:00:29]} Nh5 {[%emt 0:04:42]} 19. Kh2 {[%emt 0:01:53]} Nf6 {[%emt 0:02:16]} 20. Bg2 {[%emt 0:02:41]} h6 {[%emt 0:00:47]} 21. Nc2 {[%emt 0:06:47]} Qb6 {[%emt 0:02:17]} 22. b4 {[%emt 0:04:00]} axb4 {[%emt 0:00:08]} 23. axb4 {[%emt 0:00:08]} h5 {[%emt 0:01:41]} 24. Qxd6 {[%emt 0:06:35]} h4 {[%emt 0:01:18]} 25. c5 {[%emt 0:00:09]} hxg3+ {[%emt 0:00:18]} 26. Kh1 {[%emt 0:10:27]} Qa6 {[%emt 0:01:47]} 27. Bf1 {[%emt 0:07:42]} g2+ {[%emt 0:05:48]} 28. Kxg2 {[%emt 0:02:03]} b5 {[%emt 0:01:41]} 29. Bd3 {[%emt 0:12:58]} Re6 {[%emt 0:08:24]} 30. Qd8+ {[%emt 0:01:55]} Re8 {[%emt 0:00:32]} 31. Qd6 {[%emt 0:07:07]} Re6 {[%emt 0:02:53]} 32. Qd8+ {[%emt 0:02:58]} Re8 {[%emt 0:01:01]} 1/2-1/2

[Event "Fagernes GM Swiss 2020"]
[Site "Fagernes"]
[Date "2020.10.07"]
[Round "5.24"]
[White "Fuglestein, Sander"]
[Black "Kvendseth, Thyra"]
[Result "1/2-1/2"]
[ECO "E62"]
[WhiteElo "2109"]
[BlackElo "2017"]
[Annotator "ChessBase"]
[PlyCount "65"]
[EventDate "2020.10.04"]
[EventType "swiss"]
[EventCountry "NOR"]
[SourceTitle "playchess.com"]
[Source "ChessBase"]
[SourceQuality "1"]
[TimeControl "40/6000+30:2400+30"]

1. d4 {[%emt 0:00:00]} Nf6 {[%emt 0:00:00]} 2. c4 {[%emt 0:00:00]} g6 {[%emt 0:00:00]} 3. Nf3 {[%emt 0:00:00]} Bg7 {[%emt 0:00:00]} 4. g3 {[%emt 0:00:00]} d6 {[%emt 0:00:13]} 5. Bg2 {[%emt 0:00:00]} O-O {[%emt 0:00:09]} 6. O-O {[%emt 0:00:00]} c6 {[%emt 0:00:49]} 7. Nc3 {[%emt 0:00:06]} Bf5 {[%emt 0:00:20]} 8. b3 {[%emt 0:06:46]} Ne4 {[%emt 0:03:42]} 9. Bb2 {[%emt 0:00:55]} Nxc3 {[%emt 0:00:39]} 10. Bxc3 {[%emt 0:00:05]} Be4 {[%emt 0:00:07]} 11. Qd2 {[%emt 0:01:37]} Nd7 {[%emt 0:03:02]} 12. Rfd1 {[%emt 0:02:25]} Qc7 {[%emt 0:04:46]} 13. Qf4 {[%emt 0:06:26]} Bf5 {[%emt 0:13:06]} 14. e4 {[%emt 0:08:04]} e5 {[%emt 0:12:11]} 15. Qh4 {[%emt 0:05:28]} Bf6 {[%emt 0:04:31]} 16. Ng5 {[%emt 0:09:32]} Bxg5 {[%emt 0:00:31]} 17. Qxg5 {[%emt 0:00:00]} f6 {[%emt 0:00:24]} 18. Qd2 {[%emt 0:09:04]} Bg4 {[%emt 0:04:16]} 19. f3 {[%emt 0:00:39]} Be6 {[%emt 0:09:06]} 20. Rac1 {[%emt 0:01:04]} c5 {[%emt 0:14:38]} 21. dxe5 {[%emt 0:05:22]} dxe5 {[%emt 0:00:12]} 22. Qd6 {[%emt 0:01:29]} Qxd6 {[%emt 0:00:14]} 23. Rxd6 {[%emt 0:00:01]} Kf7 {[%emt 0:01:47]} 24. f4 {[%emt 0:01:26]} Ke7 {[%emt 0:02:00]} 25. Rcd1 {[%emt 0:02:37]} Rad8 {[%emt 0:00:46]} 26. Kf2 {[%emt 0:00:53]} h6 {[%emt 0:10:22]} 27. Ke3 {[%emt 0:03:37]} g5 {[%emt 0:05:31]} 28. Bf3 {[%emt 0:05:17]} Rg8 {[%emt 0:05:24]} 29. Ba5 {[%emt 0:04:20]} b6 {[%emt 0:00:58]} 30. Bc3 {[%emt 0:00:08]} g4 {[%emt 0:05:25]} 31. Be2 {[%emt 0:05:44]} h5 {[%emt 0:01:36]} 32. a4 {[%emt 0:10:55]} a5 {[%emt 0:02:45]} 33. R1d2 {[%emt 0:03:19]} 1/2-1/2

[Event "Fagernes GM Swiss 2020"]
[Site "Fagernes"]
[Date "2020.10.08"]
[Round "6.6"]
[White "Dahl, Trygve"]
[Black "Elsness, Frode"]
[Result "0-1"]
[ECO "B55"]
[WhiteElo "2211"]
[BlackElo "2454"]
[Annotator "RC"]
[PlyCount "146"]
[EventDate "2020.10.04"]
[EventType "swiss"]
[EventCountry "NOR"]
[SourceTitle "playchess.com"]
[Source "ChessBase"]
[SourceQuality "1"]
[TimeControl "40/6000+30:2400+30"]

1. e4 {[%emt 0:00:00]} c5 {[%emt 0:02:46]} 2. Nf3 {[%emt 0:00:00]} d6 {[%emt 0:00:08]} 3. d4 {[%emt 0:00:00]} cxd4 {[%emt 0:00:08]} 4. Nxd4 {[%emt 0:00:00]} Nf6 {[%emt 0:00:06]} 5. f3 {[%emt 0:00:00]} e5 {[%emt 0:00:30]} 6. Bb5+ {[%emt 0:00:00]} Nbd7 {[%emt 0:00:18]} 7. Nf5 {[%emt 0:01:00]} d5 {[%emt 0:01:18]} 8. exd5 {[%emt 0:01:30]} a6 {[%emt 0:00:33]} 9. Ba4 {[%emt 0:00:47]} b5 {[%emt 0:00:21]} 10. Bb3 {[%emt 0:00:01]} Nc5 {[%emt 0:00:24]} 11. Ne3 {[%emt 0:00:03]} Bd6 {[%emt 0:01:08]} 12. O-O {[%emt 0:01:07]} e4 {[%emt 0:01:14]} 13. Nc3 {[%emt 0:03:00]} O-O {[%emt 0:03:58]} 14. Qe1 {[%emt 0:04:12]} Re8 {[%emt 0:08:13]} 15. Qh4 {[%emt 0:03:30]} Re5 {[%emt 0:08:14]} 16. f4 {[%emt 0:12:35]} Rh5 {[%emt 0:05:08]} 17. Qf2 {[%emt 0:07:17]} Nxb3 {[%emt 0:07:35]} 18. axb3 {[%emt 0:00:58]} Bc5 {[%emt 0:00:09]} 19. Qe2 {[%emt 0:05:06]} Bg4 {[%emt 0:15:26]} 20. Qe1 {[%emt 0:01:53]} Bd7 {[%emt 0:13:26]} 21. Qe2 {[%emt 0:01:38]} Rh6 {[%emt 0:05:16]} 22. Kh1 {[%emt 0:06:24]} Bxe3 {[%emt 0:04:26]} 23. Bxe3 {[%emt 0:03:28]} b4 {[%emt 0:00:21]} 24. f5 {[%emt 0:07:17]} bxc3 {[%emt 0:00:09]} 25. bxc3 {[%emt 0:00:02]} Rh5 {[%emt 0:03:40]} 26. g4 {[%emt 0:02:23]} Rh4 {[%emt 0:09:30]} 27. Bg5 {[%emt 0:03:17]} Rh3 {[%emt 0:00:02]} 28. c4 {[%emt 0:04:58]} h6 {[%emt 0:00:37]} 29. Kg2 {[%emt 0:05:39]} Rf3 {[%emt 0:02:46]} 30. Bh4 {[%emt 0:01:37]} g5 {[%emt 0:04:16]} 31. Bg3 {[%emt 0:03:29]} Nxg4 {[%emt 0:02:11]} 32. Qxe4 {[%emt 0:02:55]} Rxf1 {[%emt 0:00:03]} 33. Rxf1 {[%emt 0:00:13]} Nf6 {[%emt 0:01:53]} 34. Qd4 {[%emt 0:01:09]} Nh5 {[%emt 0:03:31]} 35. c5 {[%emt 0:07:13]} Ng7 {[%emt 0:00:03]} 36. f6 {[%emt 0:06:15]} Nf5 {[%emt 0:00:46]} 37. Qe5 {[%emt 0:01:22]} Nxg3 {[%emt 0:05:48]} 38. Kxg3 {[%emt 0:05:38]} Qa5 {[%emt 0:00:43]} 39. Qd4 {[%emt 0:01:44]} Re8 {[%emt 0:01:05]} 40. c6 {[%emt 0:05:32]} Qc7+ {[%emt 0:00:35]} 41. Kg2 {[%emt 0:40:10]} Bxc6 {[%emt 0:03:54]} 42. dxc6 {[%emt 0:00:00]} Qxc6+ {[%emt 0:00:03]} 43. Kg3 {[%emt 0:00:00]} Qc7+ {[%emt 0:02:11]} 44. Kg2 {[%emt 0:00:00]} Qxc2+ {[%emt 0:00:26]} 45. Rf2 {[%emt 0:00:00]} Qe4+ {[%emt 0:06:43]} 46. Qxe4 {[%emt 0:00:00]} Rxe4 {[%emt 0:00:01]} 47. Ra2 {[%emt 0:00:00]} Re6 {[%emt 0:00:43]} 48. h4 {[%emt 0:00:00]} Kh7 {[%emt 0:00:28]} 49. hxg5 {[%emt 0:00:00]} hxg5 {[%emt 0:00:02]} 50. Kg3 {[%emt 0:00:00]} Kg6 {[%emt 0:00:35]} 51. Kg4 {[%emt 0:00:00]} Rb6 {[%emt 0:08:33]} 52. Ra3 {[%emt 0:00:00]} Rb4+ {[%emt 0:01:57]} 53. Kg3 {[%emt 0:00:00]} a5 {[%emt 0:01:33]} 54. Rxa5 {[%emt 0:00:00]} Rxb3+ {[%emt 0:00:08]} 55. Kg4 {[%emt 0:00:00]} Rb4+ {[%emt 0:00:04]} 56. Kg3 {[%emt 0:00:00]} Kxf6 {[%emt 0:00:16]} 57. Ra8 {[%emt 0:00:00]} Kf5 {[%emt 0:00:22]} 58. Ra5+ {[%emt 0:00:00]} Kg6 {[%emt 0:00:07]} 59. Ra6+ {[%emt 0:00:00]} f6 {[%emt 0:01:02]} 60. Rc6 {[%emt 0:00:00]} Rf4 {[%emt 0:00:44]} 61. Rc8 {[%emt 0:00:00]} Re4 {[%emt 0:01:01]} 62. Rc6 {[%emt 0:00:00]} Kf5 {[%emt 0:01:22]} 63. Rc5+ {[%emt 0:00:00]} Re5 {[%emt 0:00:02]} 64. Rc4 {[%emt 0:00:00]} Re3+ {[%emt 0:00:26]} 65. Kf2 {[%emt 0:00:00]} Ra3 {[%emt 0:00:08]} 66. Rc6 {[%emt 0:00:00]} g4 {[%emt 0:00:26]} 67. Kg2 {[%emt 0:00:00]} Kg5 {[%emt 0:00:10]} 68. Rc8 {[%emt 0:00:00]} f5 {[%emt 0:00:08]} 69. Rc5 {[%emt 0:00:00]} Re3 {[%emt 0:02:23]} 70. Kf2 {[%emt 0:00:00]} Rf3+ {[%emt 0:01:29]} 71. Kg2 {[%emt 0:00:00]} Kh4 {[%emt 0:00:57]} 72. Ra5 {[%emt 0:02:46]} Rf4 {[%emt 0:00:18]} 73. Ra8 {[%emt 0:02:57]} Rb4 {[%emt 0:00:21]} 0-1

[Event "Fagernes GM Swiss 2020"]
[Site "Fagernes"]
[Date "2020.10.09"]
[Round "7.1"]
[White "Urkedal, Frode Olav Olsen"]
[Black "Notkevich, Benjamin Arvola"]
[Result "1-0"]
[ECO "C10"]
[WhiteElo "2549"]
[BlackElo "2482"]
[Annotator "ChessBase"]
[PlyCount "77"]
[EventDate "2020.10.04"]
[EventType "swiss"]
[EventCountry "NOR"]
[SourceTitle "playchess.com"]
[Source "ChessBase"]
[SourceQuality "1"]
[TimeControl "40/6000+30:2400+30"]

1. d4 {[%emt 0:00:00]} e6 {[%emt 0:00:00]} 2. e4 {[%emt 0:01:30]} d5 {[%emt 0:00:16]} 3. Nc3 {[%emt 0:00:06]} dxe4 {[%emt 0:02:40]} 4. Nxe4 {[%emt 0:00:45]} Nd7 {[%emt 0:00:13]} 5. g3 {[%emt 0:00:04]} Ngf6 {[%emt 0:04:13]} 6. Nxf6+ {[%emt 0:00:17]} Nxf6 {[%emt 0:00:15]} 7. Bg2 {[%emt 0:00:05]} c5 {[%emt 0:08:57]} 8. Nf3 {[%emt 0:02:03]} Be7 {[%emt 0:02:04]} 9. O-O {[%emt 0:03:31]} O-O {[%emt 0:00:11]} 10. a4 {[%emt 0:13:08]} cxd4 {[%emt 0:12:49]} 11. Qxd4 {[%emt 0:01:59]} Qxd4 {[%emt 0:07:16]} 12. Nxd4 {[%emt 0:04:00]} e5 {[%emt 0:00:11]} 13. Re1 {[%emt 0:08:09]} Ng4 {[%emt 0:23:58]} 14. Nb3 {[%emt 0:02:01]} Bd6 {[%emt 0:15:09]} 15. h3 {[%emt 0:03:11]} Nf6 {[%emt 0:01:20]} 16. Na5 {[%emt 0:04:05]} e4 {[%emt 0:10:43]} 17. Nc4 {[%emt 0:04:20]} Rd8 {[%emt 0:03:09]} 18. Rd1 {[%emt 0:21:17]} Be7 {[%emt 0:01:34]} 19. Rxd8+ {[%emt 0:00:16]} Bxd8 {[%emt 0:00:03]} 20. Nd6 {[%emt 0:00:10]} Bb6 {[%emt 0:03:18]} 21. a5 {[%emt 0:01:18]} Bc5 {[%emt 0:00:19]} 22. Nxe4 {[%emt 0:00:07]} Nxe4 {[%emt 0:01:28]} 23. Bxe4 {[%emt 0:00:59]} a6 {[%emt 0:00:11]} 24. Kg2 {[%emt 0:06:19]} Bd7 {[%emt 0:00:46]} 25. Bxb7 {[%emt 0:00:42]} Re8 {[%emt 0:00:08]} 26. Be3 {[%emt 0:02:12]} Bxe3 {[%emt 0:00:06]} 27. fxe3 {[%emt 0:00:05]} Bb5 {[%emt 0:01:13]} 28. e4 {[%emt 0:02:23]} f5 {[%emt 0:00:35]} 29. Bd5+ {[%emt 0:01:00]} Kf8 {[%emt 0:00:06]} 30. c4 {[%emt 0:00:06]} Bd7 {[%emt 0:00:04]} 31. Rf1 {[%emt 0:00:22]} Rb8 {[%emt 0:00:30]} 32. Rf2 {[%emt 0:00:06]} Rb4 {[%emt 0:00:14]} 33. exf5 {[%emt 0:00:31]} Ke7 {[%emt 0:00:16]} 34. g4 {[%emt 0:01:25]} Ra4 {[%emt 0:00:09]} 35. g5 {[%emt 0:00:17]} Rxa5 {[%emt 0:00:16]} 36. f6+ {[%emt 0:00:19]} gxf6 {[%emt 0:00:05]} 37. gxf6+ {[%emt 0:00:13]} Kf8 {[%emt 0:00:05]} 38. Kh2 {[%emt 0:00:26]} Be8 {[%emt 0:01:34]} 39. f7 {[%emt 0:00:19]} 1-0

[Event "Fagernes GM Swiss 2020"]
[Site "Fagernes"]
[Date "2020.10.09"]
[Round "7.2"]
[White "Ingebretsen, Jens E"]
[Black "Postny, Evgeny"]
[Result "0-1"]
[ECO "C54"]
[WhiteElo "2220"]
[BlackElo "2603"]
[Annotator "ChessBase"]
[PlyCount "160"]
[EventDate "2020.10.04"]
[EventType "swiss"]
[EventCountry "NOR"]
[SourceTitle "playchess.com"]
[Source "ChessBase"]
[SourceQuality "1"]
[TimeControl "40/6000+30:2400+30"]

1. e4 {[%emt 0:00:00]} e5 {[%emt 0:01:00]} 2. Nf3 {[%emt 0:00:00]} Nc6 {[%emt 0:00:06]} 3. Bc4 {[%emt 0:00:00]} Bc5 {[%emt 0:00:11]} 4. O-O {[%emt 0:00:13]} Nf6 {[%emt 0:00:04]} 5. d3 {[%emt 0:00:30]} h6 {[%emt 0:01:50]} 6. c3 {[%emt 0:01:22]} d6 {[%emt 0:01:02]} 7. Nbd2 {[%emt 0:06:04]} a5 {[%emt 0:00:27]} 8. Re1 {[%emt 0:03:01]} O-O {[%emt 0:01:44]} 9. Nf1 {[%emt 0:03:08]} Bb6 {[%emt 0:05:36]} 10. Be3 {[%emt 0:02:44]} Bxe3 {[%emt 0:00:20]} 11. Nxe3 {[%emt 0:00:52]} Ne7 {[%emt 0:01:23]} 12. Qc2 {[%emt 0:15:34]} Ng4 {[%emt 0:11:57]} 13. d4 {[%emt 0:06:17]} Nxe3 {[%emt 0:03:06]} 14. Rxe3 {[%emt 0:00:39]} Ng6 {[%emt 0:00:44]} 15. g3 {[%emt 0:25:15]} Bh3 {[%emt 0:05:14]} 16. Bf1 {[%emt 0:05:45]} Be6 {[%emt 0:01:04]} 17. h4 {[%emt 0:00:55]} Qf6 {[%emt 0:03:23]} 18. Kh2 {[%emt 0:04:34]} Rfe8 {[%emt 0:08:47]} 19. Bh3 {[%emt 0:02:52]} Bxh3 {[%emt 0:03:27]} 20. Kxh3 {[%emt 0:00:14]} Rad8 {[%emt 0:23:44]} 21. Kg2 {[%emt 0:03:18]} Qe6 {[%emt 0:02:26]} 22. Qb3 {[%emt 0:07:31]} Qc8 {[%emt 0:04:56]} 23. Rd1 {[%emt 0:02:06]} exd4 {[%emt 0:04:12]} 24. cxd4 {[%emt 0:01:33]} c6 {[%emt 0:01:42]} 25. Rde1 {[%emt 0:03:35]} Nf8 {[%emt 0:00:58]} 26. Qc3 {[%emt 0:00:48]} Qc7 {[%emt 0:00:35]} 27. Nd2 {[%emt 0:02:11]} d5 {[%emt 0:04:23]} 28. e5 {[%emt 0:01:19]} Ne6 {[%emt 0:00:51]} 29. f4 {[%emt 0:00:44]} Qb6 {[%emt 0:00:58]} 30. Nb3 {[%emt 0:01:53]} a4 {[%emt 0:02:19]} 31. Nc5 {[%emt 0:00:38]} Nxc5 {[%emt 0:01:17]} 32. dxc5 {[%emt 0:02:54]} Qb5 {[%emt 0:00:10]} 33. Qd4 {[%emt 0:00:17]} b6 {[%emt 0:03:46]} 34. Rc1 {[%emt 0:00:14]} Rb8 {[%emt 0:00:09]} 35. b3 {[%emt 0:02:12]} axb3 {[%emt 0:01:43]} 36. axb3 {[%emt 0:01:17]} Qa6 {[%emt 0:01:14]} 37. b4 {[%emt 0:02:46]} Qa2+ {[%emt 0:01:07]} 38. Kg1 {[%emt 0:00:42]} bxc5 {[%emt 0:00:57]} 39. Qxc5 {[%emt 0:00:17]} Rec8 {[%emt 0:05:40]} 40. e6 {[%emt 0:01:24]} fxe6 {[%emt 0:00:11]} 41. Rxe6 {[%emt 0:41:17]} Qb3 {[%emt 0:43:08]} 42. Qc3 {[%emt 0:00:00]} Rxb4 {[%emt 0:00:00]} 43. Qxb3 {[%emt 0:00:00]} Rxb3 {[%emt 0:00:00]} 44. Kg2 {[%emt 0:00:00]} c5 {[%emt 0:00:00]} 45. Re7 {[%emt 0:00:00]} Ra8 {[%emt 0:00:00]} 46. Rxc5 {[%emt 0:00:43]} Raa3 {[%emt 0:00:00]} 47. Rxd5 {[%emt 0:01:05]} Rxg3+ {[%emt 0:00:00]} 48. Kf2 {[%emt 0:00:39]} Raf3+ {[%emt 0:00:00]} 49. Ke2 {[%emt 0:00:05]} Rxf4 {[%emt 0:00:00]} 50. h5 {[%emt 0:00:28]} Kh7 {[%emt 0:00:00]} 51. Ree5 {[%emt 0:00:49]} Rh3 {[%emt 0:00:00]} 52. Ra5 {[%emt 0:00:36]} Rff3 {[%emt 0:00:00]} 53. Rf5 {[%emt 0:01:39]} Rb3 {[%emt 0:00:00]} 54. Rab5 {[%emt 0:00:57]} Rh2+ {[%emt 0:00:00]} 55. Kf1 {[%emt 0:00:14]} Rg3 {[%emt 0:00:00]} 56. Ra5 {[%emt 0:01:03]} Rgg2 {[%emt 0:00:00]} 57. Rab5 {[%emt 0:00:23]} Ra2 {[%emt 0:00:00]} 58. Kg1 {[%emt 0:00:05]} Rhg2+ {[%emt 0:00:00]} 59. Kh1 {[%emt 0:00:24]} Rg4 {[%emt 0:00:00]} 60. Ra5 {[%emt 0:00:25]} Rxa5 {[%emt 0:00:00]} 61. Rxa5 {[%emt 0:00:21]} Rg5 {[%emt 0:00:00]} 62. Ra6 {[%emt 0:00:36]} Rxh5+ {[%emt 0:00:00]} 63. Kg2 {[%emt 0:00:03]} Rf5 {[%emt 0:00:00]} 64. Rb6 {[%emt 0:00:04]} h5 {[%emt 0:00:00]} 65. Ra6 {[%emt 0:00:05]} g6 {[%emt 0:00:00]} 66. Rb6 {[%emt 0:00:06]} Kh6 {[%emt 0:00:00]} 67. Ra6 {[%emt 0:00:09]} Rb5 {[%emt 0:00:00]} 68. Rc6 {[%emt 0:00:07]} Kg5 {[%emt 0:00:00]} 69. Ra6 {[%emt 0:00:05]} h4 {[%emt 0:00:00]} 70. Ra4 {[%emt 0:00:08]} Kh5 {[%emt 0:00:00]} 71. Rc4 {[%emt 0:00:07]} g5 {[%emt 0:00:00]} 72. Ra4 {[%emt 0:00:06]} Rb2+ {[%emt 0:00:00]} 73. Kg1 {[%emt 0:00:10]} h3 {[%emt 0:00:00]} 74. Rc4 {[%emt 0:00:11]} g4 {[%emt 0:00:00]} 75. Ra4 {[%emt 0:01:00]} Kh4 {[%emt 0:00:00]} 76. Ra1 {[%emt 0:01:04]} Re2 {[%emt 0:00:00]} 77. Rb1 {[%emt 0:00:49]} g3 {[%emt 0:00:00]} 78. Kh1 {[%emt 0:00:29]} Kg4 {[%emt 0:00:00]} 79. Ra1 {[%emt 0:00:51]} Re4 {[%emt 0:00:00]} 80. Rb1 {[%emt 0:00:23]} h2 {[%emt 0:00:00]} 0-1

[Event "Fagernes GM Swiss 2020"]
[Site "Fagernes"]
[Date "2020.10.09"]
[Round "7.3"]
[White "Elsness, Frode"]
[Black "Haug, Johannes"]
[Result "0-1"]
[ECO "E48"]
[WhiteElo "2454"]
[BlackElo "2481"]
[Annotator "ChessBase"]
[PlyCount "76"]
[EventDate "2020.10.04"]
[EventType "swiss"]
[EventCountry "NOR"]
[SourceTitle "playchess.com"]
[Source "ChessBase"]
[SourceQuality "1"]
[TimeControl "40/6000+30:2400+30"]

1. d4 {[%emt 0:00:42]} Nf6 {[%emt 0:00:30]} 2. c4 {[%emt 0:00:08]} e6 {[%emt 0:00:21]} 3. Nc3 {[%emt 0:00:04]} Bb4 {[%emt 0:00:17]} 4. e3 {[%emt 0:00:04]} O-O {[%emt 0:00:25]} 5. Bd3 {[%emt 0:00:05]} c5 {[%emt 0:02:22]} 6. Nge2 {[%emt 0:00:48]} d5 {[%emt 0:03:50]} 7. cxd5 {[%emt 0:01:10]} cxd4 {[%emt 0:03:40]} 8. exd4 {[%emt 0:00:34]} Nxd5 {[%emt 0:05:11]} 9. O-O {[%emt 0:00:19]} Nc6 {[%emt 0:02:43]} 10. Nxd5 {[%emt 0:04:18]} exd5 {[%emt 0:17:24]} 11. Be3 {[%emt 0:07:12]} Bd6 {[%emt 0:03:06]} 12. Nf4 {[%emt 0:05:24]} Bxf4 {[%emt 0:29:17]} 13. Bxf4 {[%emt 0:00:09]} Nxd4 {[%emt 0:00:18]} 14. Bxh7+ {[%emt 0:01:33]} Kxh7 {[%emt 0:00:10]} 15. Qxd4 {[%emt 0:00:06]} Be6 {[%emt 0:01:40]} 16. Rfc1 {[%emt 0:11:26]} Qh4 {[%emt 0:04:36]} 17. Rc7 {[%emt 0:09:22]} b6 {[%emt 0:00:55]} 18. Rac1 {[%emt 0:08:46]} Rfc8 {[%emt 0:08:35]} 19. h3 {[%emt 0:11:22]} Qh5 {[%emt 0:15:15]} 20. Be5 {[%emt 0:06:52]} Qg5 {[%emt 0:01:25]} 21. Kh2 {[%emt 0:06:40]} Qg6 {[%emt 0:07:13]} 22. R1c3 {[%emt 0:08:27]} Rxc7 {[%emt 0:00:07]} 23. Rxc7 {[%emt 0:04:00]} Kg8 {[%emt 0:00:07]} 24. f3 {[%emt 0:05:28]} f6 {[%emt 0:01:31]} 25. Bg3 {[%emt 0:02:29]} Qe8 {[%emt 0:00:45]} 26. h4 {[%emt 0:02:15]} b5 {[%emt 0:00:33]} 27. Bd6 {[%emt 0:04:41]} Qd8 {[%emt 0:00:23]} 28. Qf4 {[%emt 0:00:48]} Rc8 {[%emt 0:00:45]} 29. Rxa7 {[%emt 0:00:50]} Rc6 {[%emt 0:00:29]} 30. Bc7 {[%emt 0:02:23]} Qe8 {[%emt 0:00:11]} 31. Qg3 {[%emt 0:01:09]} Bd7 {[%emt 0:00:25]} 32. Bf4 {[%emt 0:00:45]} Kh7 {[%emt 0:00:17]} 33. Be3 {[%emt 0:01:52]} Rc4 {[%emt 0:01:06]} 34. b3 {[%emt 0:00:29]} Rc8 {[%emt 0:00:28]} 35. Bd4 {[%emt 0:00:48]} Ra8 {[%emt 0:00:32]} 36. Rb7 {[%emt 0:00:10]} Rxa2 {[%emt 0:00:32]} 37. Bxf6 {[%emt 0:01:34]} gxf6 {[%emt 0:00:04]} 38. Qg4 {[%emt 0:02:34]} Ra7 {[%emt 0:00:30]} 0-1

[Event "Fagernes GM Swiss 2020"]
[Site "Fagernes"]
[Date "2020.10.09"]
[Round "7.4"]
[White "Holm, Kristian Stuvik"]
[Black "Kaasen, Tor Fredrik"]
[Result "1/2-1/2"]
[ECO "D02"]
[WhiteElo "2465"]
[BlackElo "2386"]
[Annotator "ChessBase"]
[PlyCount "47"]
[EventDate "2020.10.04"]
[EventType "swiss"]
[EventCountry "NOR"]
[SourceTitle "playchess.com"]
[Source "ChessBase"]
[SourceQuality "1"]
[TimeControl "40/6000+30:2400+30"]

1. d4 {[%emt 0:00:00]} d5 {[%emt 0:03:18]} 2. Nf3 {[%emt 0:00:00]} Nf6 {[%emt 0:00:19]} 3. Bf4 {[%emt 0:00:03]} e6 {[%emt 0:02:34]} 4. Nbd2 {[%emt 0:01:22]} Bd6 {[%emt 0:01:47]} 5. e3 {[%emt 0:00:28]} O-O {[%emt 0:02:13]} 6. Bd3 {[%emt 0:00:31]} Bxf4 {[%emt 0:03:26]} 7. exf4 {[%emt 0:00:13]} Qd6 {[%emt 0:00:26]} 8. g3 {[%emt 0:00:37]} b6 {[%emt 0:01:00]} 9. O-O {[%emt 0:01:08]} c5 {[%emt 0:01:59]} 10. Re1 {[%emt 0:01:13]} Ba6 {[%emt 0:02:24]} 11. Rc1 {[%emt 0:00:27]} Rc8 {[%emt 0:06:05]} 12. Bxa6 {[%emt 0:08:27]} Nxa6 {[%emt 0:00:44]} 13. c3 {[%emt 0:00:09]} b5 {[%emt 0:05:02]} 14. Ne5 {[%emt 0:08:07]} c4 {[%emt 1:15:43]} 15. g4 {[%emt 0:07:09]} Rc7 {[%emt 0:00:00]} 16. g5 {[%emt 0:18:22]} Nd7 {[%emt 0:00:00]} 17. Nxd7 {[%emt 0:05:54]} Rxd7 {[%emt 0:00:00]} 18. Qg4 {[%emt 0:00:09]} Re7 {[%emt 0:00:00]} 19. Re3 {[%emt 0:03:28]} Nb8 {[%emt 0:00:00]} 20. Rce1 {[%emt 0:07:46]} Nd7 {[%emt 0:00:00]} 21. f5 {[%emt 0:09:46]} exf5 {[%emt 0:00:00]} 22. Qxf5 {[%emt 0:00:18]} Rxe3 {[%emt 0:00:00]} 23. Rxe3 {[%emt 0:00:08]} a5 {[%emt 0:00:00]} 24. a3 {[%emt 0:10:03]} 1/2-1/2